Cogmind - Beta 14 @@@ ROGUE MODE // 2024.10.31 @ 17:41:24 Player: weedlord420 Result: Destroyed by TT-C9P(R) with Subdweller Machine Gun Performance ------------- Evolutions (0) 0 Regions Visited (2) 400 Robots Destroyed (22) 110 Value Destroyed (537) 537 Prototype IDs (0) 0 Alien Tech Used (0) 0 Bonus (0) 0 TOTAL SCORE: 1047 Bonus ------- None Cogmind --------- Core Integrity 0/250 Matter 238/300 Energy 200/200 System Corruption 2% Temperature Warm (142) Movement Treading (240) Ox1 Location -10/Subcaves Parts ------- > --- POWER (1) -------- Subdweller Power Source > --- PROPULSION (2) --- Light Treads > --- UTILITY (2) ------ Large Storage Unit Structural Scanner > --- WEAPON (2) ------- Subdweller Machine Gun (fused) Subdweller Machine Gun > --- INVENTORY (15) --- Ion Engine Subdweller Power Source Aluminum Leg Aluminum Leg Subdweller Monowheel Subdweller Monowheel Subdweller Monowheel Small Storage Unit Structural Scanner Assault Rifle Heavy Assault Rifle Subdweller Shrapnel Launcher Peak State ------------ > --- POWER ------------ Ion Engine > --- PROPULSION ------- Subdweller Monowheel Subdweller Monowheel > --- UTILITY ---------- Large Storage Unit Structural Scanner > --- WEAPON ----------- Assault Rifle Subdweller Machine Gun > --- INVENTORY -------- Ion Engine Subdweller Power Source Light Treads Light Treads Light Treads Light Treads Aluminum Leg Aluminum Leg Subdweller Monowheel Small Storage Unit Structural Scanner Subdweller Beam Cannon Subdweller Machine Gun Subdweller Machine Gun Subdweller Shrapnel Launcher [Rating: 12] Favorites ----------- Power Ion Engine Engine Ion Engine Propulsion Light Treads Treads Light Treads Wheel Subdweller Monowheel Utility Structural Scanner Device Structural Scanner Storage Large Storage Unit Weapon Assault Rifle Energy Cannon Subdweller Beam Cannon Ballistic Gun Assault Rifle Launcher Grenade Launcher Build | -11 -10 -10 ------- Run | Yrd Mat Sub Slots Evolved . | . . . Power . | . . . Propulsion . | . . . Utility . | . . . Weapon . | . . . Parts Attached 24 | 5 9 10 Power 2 | 1 . 1 Engine 2 | 1 . 1 Core . | . . . Reactor . | . . . Propulsion 6 | 2 . 4 Treads 4 | 2 . 2 Leg . | . . . Wheel 2 | . . 2 Hover . | . . . Flight . | . . . Utility 3 | 1 2 . Device 1 | . 1 . Storage 2 | 1 1 . Processor . | . . . Hackware . | . . . Protection . | . . . Artifact . | . . . Weapon 13 | 1 7 5 Energy Gun . | . . . Energy Cannon 1 | . . 1 Ballistic Gun 9 | 1 4 4 Ballistic Cannon . | . . . Launcher 3 | . 3 . Special Weapon . | . . . Impact Weapon . | . . . Slashing Weapon . | . . . Piercing Weapon . | . . . Special Melee Weapon . | . . . Unidentified Prototypes . | . . . Parts Lost 4 | . . 4 Power 1 | . . 1 Propulsion 1 | . . 1 Utility . | . . . Weapon 2 | . . 2 Highest Loss Streak 2 | . . 2 To Critical Strikes . | . . . Average Slot Usage (%) 94 | . 88 99 Engine 13 | . 14 13 Treads 24 | . 28 21 Wheel 3 | . . 6 Device 9 | . 3 14 Storage 14 | . 14 14 Energy Cannon 1 | . . 2 Ballistic Gun 26 | . 26 25 Peak Build Rating 12 | 5 7 12 Average Rating 8 | 3 6 10 On Entrance 4 | . 5 7 Naked Turns . | . . . Heaviest Build 38 | 12 30 38 Greatest Support 40 | 40 40 40 Greatest Overweight (x) 1 | . . 1 Average Overweight (x) . | . . . Largest Inventory Capacity 15 | 8 15 15 Average Capacity 12 | 7 9 15 Most Carried 15 | 5 8 15 Average Carried 10 | 2 6 13 Final Capacity 15 | 8 15 15 Final Carried 12 | 4 8 12 Class Distribution -------------------- 100% | Mutant Dominant Class ---------------- Mutant | -10/Materials Mutant | -10/Subcaves Resources | -11 -10 -10 ----------- Run | Yrd Mat Sub Matter Collected 951 | 170 305 476 Remotely . | . . . Salvage Created 776 | . 403 373 Parts 55 | . 33 22 Haulers Intercepted 1 | . 1 . Recyclers Shooed 2 | . 2 . Parts Field Recycled . | . . . Retrieved Matter . | . . . Parts Self-Destructed 7 | . . 7 Prevented . | . . . Kills | -11 -10 -10 ------- Run | Yrd Mat Sub Combat Hostiles Destroyed 18 | . 10 8 Guns 12 | . 6 6 Cannons 2 | . . 2 AOE 4 | . 4 . Classes Destroyed 10 | . 6 4 Builder 1 | . 1 . Hauler 1 | . 1 . Recycler 1 | . 1 . Watcher 1 | . 1 . Swarmer 7 | . 6 1 Grunt 5 | . 4 1 Sentry 1 | . . 1 Artisan 1 | . . 1 Cobbler 1 | . . 1 Subdweller 5 | . . 5 Best Kill Streak 3 | . 3 3 Combat Bots Only 3 | . 3 3 Max Kills in Single Turn 2 | . 2 1 Gunslinging . | . . . Exploded 2 | . 2 . Melee . | . . . Uniques/NPCs Destroyed . | . . . Combat | -11 -10 -10 -------- Run | Yrd Mat Sub Hostile Shots Fired 126 | . 55 71 Missed 47 | . 23 24 Damage Taken 1187 | . 281 906 Core 266 | . 31 235 Absorbed by Shields . | . . . Core Remaining (%) 100 | 100 . . Volleys Fired 100 | . 40 60 Largest 2 | . 2 2 Hottest 110 | . 50 110 Shots Fired 187 | . 69 118 Gun 173 | . 64 109 Cannon 9 | . . 9 Launcher 5 | . 5 . Special . | . . . Kinetic 173 | . 64 109 Thermal 9 | . . 9 Explosive 5 | . 5 . Electromagnetic . | . . . Robot Hit Streak 11 | . 10 11 Robot Miss Streak 7 | . 7 3 Penetration Max . | . . . Secondary Targets 1 | . 1 . Max Gunslinging Chain 1 | . 1 . Shots Hit Robots 109 | . 36 73 Core Hits 40 | . 21 19 Critical Kills 1 | . . 1 Critical Parts Destroyed . | . . . Critical Strikes 2 | . . 2 Destroy 2 | . . 2 Melee Attacks . | . . . Impact . | . . . Slashing . | . . . Piercing . | . . . Sneak Attacks . | . . . Combat Hostiles . | . . . Follow-up Attacks . | . . . Damage Inflicted 1929 | . 712 1217 Guns 1533 | . 482 1051 Cannons 166 | . . 166 Explosions 230 | . 230 . Melee . | . . . Ramming . | . . . Kinetic 1533 | . 482 1051 Thermal 166 | . . 166 Explosive 230 | . 230 . Electromagnetic . | . . . Impact . | . . . Slashing . | . . . Piercing . | . . . Highest Corruption 2 | . 2 2 Average Corruption 2 | . 2 2 Corruption Purged . | . . . Corruption Blocked . | . . . Effects 26 | . 3 23 Message Errors 2 | . . 2 Matter Fused 12 | . 2 10 Heat Flow Errors 5 | . . 5 Energy Discharges 3 | . . 3 Parts Fused 1 | . . 1 Data Loss (minor) 1 | . . 1 Misfires 2 | . 1 1 Overload Shots . | . . . Overflow Damage 14 | . . 14 Projectiles 14 | . . 14 Explosions . | . . . Melee . | . . . Knockbacks . | . . . Impact . | . . . Kinetic . | . . . Secondary . | . . . Self-Inflicted Damage . | . . . Shots . | . . . Rammed . | . . . Targets Rammed . | . . . Kicked . | . . . Crushed . | . . . Highest Temperature 244 | . 2 244 Average Temperature 90 | . 2 93 Received Heat Transfer 168 | . 36 132 Effects 1 | . . 1 Energy Bleed 1 | . . 1 Siege Activations . | . . . Robots Corrupted . | . . . Combat Hostiles . | . . . Parts Fried . | . . . Impact Corruptions . | . . . Robots Melted . | . . . Combat Hostiles . | . . . Parts Melted . | . . . Heat Transferred 222 | . . 222 Parts Sabotaged . | . . . Parts Stolen . | . . . Parts Stripped . | . . . Power Chain Reactions . | . . . Alert | -11 -10 -10 ------- Run | Yrd Mat Sub Peak Influence 239 | . 239 . Initial . | . . . Average 78 | . 83 . Maximum Alert Level 1 | . 1 . Low Security (%) 95 | 100 95 . Level 1 4 | . 4 . Level 2 . | . . . Level 3 . | . . . Level 4 . | . . . Level 5 . | . . . High Security . | . . . Max Security . | . . . Squads Dispatched 1 | . 1 . Investigation . | . . . Extermination . | . . . Reinforcement 1 | . 1 . Assault . | . . . Garrison . | . . . Intercept . | . . . Searches Triggered . | . . . Construction Impeded . | . . . Haulers Reinforced . | . . . Active Scanning Responses . | . . . Cargo Convoy Interrupts . | . . . Stealth | -11 -10 -10 --------- Run | Yrd Mat Sub Distress Signals 1 | . 1 . Communications Jammed . | . . . Distress Signals . | . . . Times Spotted 28 | . 18 10 Peak Tracking Total 4 | . 4 3 Tactical Retreats . | . . . Traps | -11 -10 -10 ------- Run | Yrd Mat Sub Traps Triggered 1 | . 1 . Indirectly . | . . . Trap Hack Attempts . | . . . Triggered . | . . . Disarmed . | . . . Reprogrammed . | . . . Reused . | . . . Traps Extracted . | . . . Installed . | . . . Triggered 1 | . . 1 Machines | -11 -10 -10 ---------- Run | Yrd Mat Sub Machines Disabled 1 | . 1 . Max in Single Turn 1 | . 1 . Machines Repaired . | . . . Machines Dismantled . | . . . Machines Sabotaged . | . . . Overloaded Fab Kills . | . . . Hacking | -11 -10 -10 --------- Run | Yrd Mat Sub Machines Accessed 5 | . 3 2 Terminals 3 | . 3 . Fabricators . | . . . Repair Stations . | . . . Recycling Units . | . . . Scanalyzers . | . . . Garrison Access . | . . . Total Hacks 11 | . 8 3 Successful 6 | . 3 3 Failed 5 | . 5 . Catastrophic 1 | . 1 . Database Lockouts . | . . . Manual 2 | . 2 . Terminals 8 | . 8 . Fabricators . | . . . Repair Stations . | . . . Recycling Units . | . . . Scanalyzers . | . . . Garrison Access . | . . . Terminal Hacks 6 | . 3 3 Record 1 | . . 1 Open Door 1 | . . 1 Locate Traps 2 | . 2 . Zone Layout 1 | . 1 . Release Object 1 | . . 1 Fabricator Hacks . | . . . Repair Station Hacks . | . . . Recycling Unit Hacks . | . . . Scanalyzer . | . . . Garrison Access Hacks . | . . . Unauthorized Hacks . | . . . Terminals . | . . . Fabricators . | . . . Repair Stations . | . . . Recycling Units . | . . . Scanalyzers . | . . . Garrison Access . | . . . Data Cores Recovered . | . . . Used . | . . . Hacking Detections 3 | . 3 . Full Trace Events . | . . . Feedback Events . | . . . Feedback Blocked . | . . . Robot Schematics Acquired . | . . . Robots Built . | . . . Authchips . | . . . Time . | . . . Total Robot Build Rating . | . . . Part Schematics Acquired . | . . . Parts Built . | . . . Authchips . | . . . Time . | . . . Total Part Build Rating . | . . . Parts Repaired . | . . . Time . | . . . Parts Recycled . | . . . Recycled Matter . | . . . Retrieved Matter . | . . . Retrieved Components . | . . . Parts Scanalyzed . | . . . Part Schematics Acquired . | . . . Parts Damaged . | . . . Bothacking | -11 -10 -10 ------------ Run | Yrd Mat Sub Used RIF Installer . | . . . Robots Hacked . | . . . Non-combat . | . . . Combat . | . . . Robot Hacks Applied . | . . . Relay Couplers Released . | . . . Fabnet Peak Effective % . | . . . Robots Rewired . | . . . Allies Hacked . | . . . Hacks Repelled . | . . . Allies | -11 -10 -10 -------- Run | Yrd Mat Sub Total Allies . | . . . Largest Group . | . . . Highest-Rated Group . | . . . Highest-Rated Ally . | . . . Total Orders . | . . . Ally Attacks . | . . . Total Damage . | . . . Kills . | . . . Allies Corrupted . | . . . Allies Melted . | . . . Intel | -11 -10 -10 ------- Run | Yrd Mat Sub Robot Analysis Total . | . . . Derelict Logs Recovered 3 | . . 3 Drone Launches . | . . . Drone Recoveries . | . . . Exploration | -11 -10 -10 ------------- Run | Yrd Mat Sub Turns Passed 2322 | 52 948 1322 Spaces Moved 1313 | 35 504 774 Core 15 | 15 . . Treads 896 | 20 504 372 Legs . | . . . Wheels 402 | . . 402 Hover . | . . . Flight . | . . . Fastest Speed 50 | 50 160 110 Average Speed 146 | 112 160 138 Slowest Speed 160 | 160 160 160 Overloaded Moves . | . . . Propulsion Burnouts . | . . . Robots Hopped . | . . . Cave-ins Triggered . | . . . Exploration Rate (%) 44 | 3 77 52 Regions Visited 2 Branch Regions 1 Pre-discovered Areas . | . . . Known Exits Taken . | . . . Unknown Exits Taken 2 | 1 1 . Scrap Searched 3 | . . 3 Spaces Dug 12 | . 12 . Terrain Destroyed 38 | . 38 . Melee . | . . . Projectile . | . . . AOE 38 | . 38 . Terrain Rammed . | . . . Walls Destroyed . | . . . Machines Disabled . | . . . Actions | -11 -10 -10 --------- Run | Yrd Mat Sub Total 1528 | 48 574 906 Wait 60 | . 16 44 Move 1311 | 34 503 774 Hop . | . . . Pick Up 27 | 9 6 12 Fast Attach . | . . . Attach 10 | 5 2 3 Detach . | . . . Swap 14 | . 7 7 Drop 5 | . . 5 Fire 100 | . 40 60 Melee . | . . . Ram . | . . . Kick . | . . . Crush . | . . . Escape Stasis . | . . . Rewire . | . . . Trap . | . . . Miscellaneous 1 | . . 1 Route ------- -11/Scrapyard -10/Materials (discovered 5 exits: [*Mat x3] / [*Min] / *Sub) -10/Subcaves (discovered 1 exit: Rec) History --------- Turn | Location | Event 19 | -11/Scrapyard | Discovered new exit (range 16) 53 | -11/Scrapyard | Entered Materials 261 | -10/Materials | Discovered new exit (range 3) 316 | -10/Materials | Build established: Mutant 419 | -10/Materials | Discovered new exit (range 16) 649 | -10/Materials | Discovered new exit (range 12) 802 | -10/Materials | Discovered new exit (range 3) 982 | -10/Materials | Discovered new exit (range 11) 1001 | -10/Materials | Entered Subcaves 1005 | -10/Subcaves | Learned Materials stockpile data 1088 | -10/Subcaves | Identified exit to Recycling 1206 | -10/Subcaves | Shifting Twisted Machinery released Sub. Machine Gun 1389 | -10/Subcaves | Shifting Twisted Machinery released Sub. Beam Cannon 1747 | -10/Subcaves | Released subatomizers from SUBCON Basin 1830 | -10/Subcaves | Core integrity fell below 50% 2025 | -10/Subcaves | Core integrity fell below 20% 2225 | -10/Subcaves | Learned Materials security intel 2323 | -10/Subcaves | Destroyed by TT-C9P(R) with Subdweller Machine Gun Last Messages --------------- 02083_ System corrupted: Heat flow error (+238). 02192_ Destroyed Wheel. 02192_ ME-9VD(u) cries out in pain. 02192_ ME-9VD(u) destroyed. 02195_ Acquired 9 matter. 02204_ XP-5NO(R): "LEAVESUB!" 02209_ Sub. Machine Gun destroyed. 02215_ Sub. Beam Cannon shoots sparks and powers down. 02220_ XP-5NO(R) destroyed. 02221_ System corrupted: Sub. Machine Gun fused. 02223_ Dropped Broken Sub. Beam Cannon. 02223_ Acquired 32 matter. 02225_ Acquired derelict log, extracted data. Data stored: Materials security intel. 02264_ System corrupted: Component data lost. 02282_ 0L-4FX(R) suffers critical hit (Destroy). 02301_ System corrupted: Matter fused (-8). 02321_ System corrupted: Heat flow error (+182). 02321_ Lgt. Treads destroyed. Map ----- +----------------------------------------------------+ | ?????????????????????????????????????????????????? | | ?????????????????????????????????????????????????? | | ?????????????????????????????????????????????????? | | ?????????????????????????????????????????????????? | | ?????????????????????????????????????????????????? | | ?????????????????????????????????????????????????? | | ?????????????????????????????????????????????????? | | ?????????????????????????????????????????????????? | | ?????????????????????????????????????????????????? | | ?????????????????????????????????????????????????? | | ?????????????????????????????????????????????????? | | ???????????????????????????## ???????????????????? | | ??????????????????????????### ?? ##?????????????? | | ??????????????????????????## ### ???????????? | | ??????????????????????????# ####??????????? | | ??????????????????????????? ###??????????? | | ??????????????????????????? ##??????????? | | ??????????????????????????? #??????????? | | ?????????????????????????# ???????????? | | ?????????????????????????## ?????????????? | | ?????????????????????????## ##?????????????? | | ?????????????????????????## R ###?????????????? | | ????????????????????????### ##??????????????? | | ???????????????????????#### ## ??????????????? | | ???????????????????????### ###???????????????? | | ???????????????????????##@ ###????????????????? | | ???????????????????????## ##?????????????????? | | ???????????????????????## ##?????????????????? | | ???????????????????????## "#####??#####????????? | | ???????????????????????## "#############???????? | | ??????????????????????### "## ###### ###???????? | | ???????????????###????### "" #### ##???????? | | ????????????############" "" ### ##???????? | | ????????????##### ######"" ### ## ###???????? | | ????????????##" ##" ### ##????????? | | ??????????????????"""""*&= ## ##????????? | | ?????????????????" #""" ###????????? | | ???????????????????### ## ] ####????????? | | ???????????????????##### ######?????????? | | ???????????????######## ######??????????? | | ???????????????######" #### ###?????????????? | | ???????????????##""""" ##### ###?????????????? | | ???????????????# """"" ###### ########???????? | | ????????????????###""" ###### #########??????? | | ????????????????#### ####### #### ###??????? | | ?????????????????#### ############ ##??????? | | ?????????????????#### ########### ##??????? | | ?????????????????### ##?###### ##??????? | | ?????????????????## ####### ###??????? | | ?????????????????##### ##### ###???????? | +----------------------------------------------------+ Best States ------------- Heat Dissipation 25 Energy Generation 15 Energy Capacity 250 Matter Stores 300 Matter Capacity 300 Sight Range 16 Terrain Scan Density 10 Evasion (%) 50 Recoil Reduction 2 Item Schematics ----------------- None Robot Schematics ------------------ None Fabricated ------------ Nothing Alien Tech Used ----------------- None Achievements -------------- None Challenges ------------ None Game ------ Seed WardroneMobileFemtoactuators Manual? 0 Play Time 00:13:56 Cumulative 86.5 hours Start 2024.10.31 @ 17:30:41 End 2024.10.31 @ 17:41:24 Sessions 1 Manual Loads 0 Difficulty Rogue Special Mode None Game No. 144 Rogue 143 Adventurer 1 Explorer 0 Win Type - Total 0 Types 0/0/0/0/0/0/0/0/0 Lore% 50 Gallery% 52 Achievement% 44 Wizard Run 0 Options --------- Layout 1 ASCII 0 Keyboard 0 Movement Mouse Keybinds 0 Fullscreen 2 Font 24/Terminus Map View 50x35 Zoom Use 0% Tactical HUD 1 Map Filters NONE Filters NONE Steam 1 RUN: 2f002163-6916-4f79-9ef5-7c342f5fc1f3